[Event "Titled Tuesday Blitz July 18 Early 2023"]
[White "Bachmann, Axel"]
[Black "Przybylski, Wojciech"]
[WhiteFideId "3700488"]
[BlackFideId "1117599"]
[WhiteElo "2798"]
[BlackElo "2597"]
[Result "1-0"]
[Round "4"]
[TimeControl "180+2"]
[Date "2023.07.18"]
[WhiteClock "0:00:12"]
[BlackClock "0:00:20"]
[Board "30"]

1. c4 {[%clk 0:03:00]}  Nf6 {[%clk 0:02:59]} 2. Nc3 {[%clk 0:03:01]}  e5 {[%clk 0:02:59]} 3. Nf3 {[%clk 0:02:59]}  Nc6 {[%clk 0:02:59]} 4. e3 {[%clk 0:02:59]}  Bb4 {[%clk 0:02:58]} 5. Qc2 {[%clk 0:02:57]}  O-O {[%clk 0:02:58]} 6. Nd5 {[%clk 0:02:57]}  Be7 {[%clk 0:02:50]} 7. a3 {[%clk 0:02:55]}  a5 {[%clk 0:02:50]} 8. b3 {[%clk 0:02:45]}  d6 {[%clk 0:02:49]} 9. Bb2 {[%clk 0:02:42]}  Be6 {[%clk 0:02:48]} 10. Ng5 {[%clk 0:02:15]}  Bxd5 {[%clk 0:02:33]} 11. cxd5 {[%clk 0:02:15]}  Nb8 {[%clk 0:02:25]} 12. Bc4 {[%clk 0:02:16]}  Nbd7 {[%clk 0:02:25]} 13. O-O {[%clk 0:02:04]}  h6 {[%clk 0:02:23]} 14. Ne4 {[%clk 0:02:04]}  Nxe4 {[%clk 0:02:21]} 15. Qxe4 {[%clk 0:02:05]}  f5 {[%clk 0:02:21]} 16. Qc2 {[%clk 0:02:03]}  Bf6 {[%clk 0:02:19]} 17. Qxf5 {[%clk 0:02:01]}  e4 {[%clk 0:01:56]} 18. Bxf6 {[%clk 0:01:21]}  Nxf6 {[%clk 0:01:56]} 19. f3 {[%clk 0:01:21]}  Re8 {[%clk 0:01:55]} 20. fxe4 {[%clk 0:01:15]}  Re5 {[%clk 0:01:47]} 21. Qf3 {[%clk 0:01:00]}  Rxe4 {[%clk 0:01:43]} 22. d3 {[%clk 0:00:57]}  Re7 {[%clk 0:01:34]} 23. e4 {[%clk 0:00:57]}  Qd7 {[%clk 0:01:34]} 24. Qg3 {[%clk 0:00:54]}  Rf8 {[%clk 0:01:20]} 25. a4 {[%clk 0:00:51]}  Re5 {[%clk 0:01:13]} 26. Rf4 {[%clk 0:00:39]}  Qe8 {[%clk 0:00:56]} 27. Raf1 {[%clk 0:00:37]}  Rg5 {[%clk 0:00:53]} 28. Qf3 {[%clk 0:00:37]}  Qe5 {[%clk 0:00:51]} 29. Qe3 {[%clk 0:00:28]}  Kh7 {[%clk 0:00:47]} 30. d4 {[%clk 0:00:28]}  Qe7 {[%clk 0:00:46]} 31. h4 {[%clk 0:00:23]}  Rg6 {[%clk 0:00:34]} 32. e5 {[%clk 0:00:24]}  Ng4 {[%clk 0:00:25]} 33. Qh3 {[%clk 0:00:11]}  Rxf4 {[%clk 0:00:06]} 34. Rxf4 {[%clk 0:00:12]}  dxe5 {[%clk 0:00:07]} 35. Rxg4 {[%clk 0:00:12]}  Rxg4 {[%clk 0:00:07]} 36. Qxg4 {[%clk 0:00:13]}  e4 {[%clk 0:00:08]} 37. h5 {[%clk 0:00:11]}  b6 {[%clk 0:00:07]} 38. Qg6+ {[%clk 0:00:10]}  Kh8 {[%clk 0:00:07]} 39. d6 {[%clk 0:00:06]}  cxd6 {[%clk 0:00:07]} 40. Bd5 {[%clk 0:00:06]}  e3 {[%clk 0:00:06]} 41. Be4 {[%clk 0:00:07]}  Kg8 {[%clk 0:00:06]} 42. Kf1 {[%clk 0:00:07]}  Kf8 {[%clk 0:00:04]} 43. Ke2 {[%clk 0:00:06]}  Qh4 {[%clk 0:00:03]} 44. Qxd6+ {[%clk 0:00:05]}  Qe7 {[%clk 0:00:02]} 45. Qxe7+ {[%clk 0:00:04]}  Kxe7 {[%clk 0:00:03]} 46. Kxe3 {[%clk 0:00:05]}  Kf6 {[%clk 0:00:03]} 47. Kf4 {[%clk 0:00:06]}  Ke6 {[%clk 0:00:04]} 48. g4 {[%clk 0:00:06]}  Kf6 {[%clk 0:00:04]} 49. d5 {[%clk 0:00:06]}  g5+ {[%clk 0:00:05]} 50. hxg6 {[%clk 0:00:06]}  Kg7 {[%clk 0:00:06]} 51. Ke5 {[%clk 0:00:06]}  b5 {[%clk 0:00:06]} 52. axb5 {[%clk 0:00:06]}  a4 {[%clk 0:00:07]} 53. bxa4 {[%clk 0:00:07]}  h5 {[%clk 0:00:08]} 54. gxh5 {[%clk 0:00:07]}  Kh6 {[%clk 0:00:09]} 55. Bf3 {[%clk 0:00:08]}  Kg5 {[%clk 0:00:10]} 56. a5 {[%clk 0:00:08]}  Kh6 {[%clk 0:00:11]} 57. a6 {[%clk 0:00:08]}  Kg7 {[%clk 0:00:11]} 58. b6 {[%clk 0:00:09]}  Kh6 {[%clk 0:00:12]} 59. a7 {[%clk 0:00:10]}  Kg5 {[%clk 0:00:13]} 60. b7 {[%clk 0:00:10]}  Kh6 {[%clk 0:00:14]} 61. a8=Q {[%clk 0:00:10]}  Kg5 {[%clk 0:00:15]} 62. b8=Q {[%clk 0:00:11]}  Kh6 {[%clk 0:00:16]} 63. Qh8+ {[%clk 0:00:10]}  Kg5 {[%clk 0:00:17]} 64. g7 {[%clk 0:00:11]}  Kh4 {[%clk 0:00:18]} 65. h6 {[%clk 0:00:11]}  Kg3 {[%clk 0:00:19]} 66. h7 {[%clk 0:00:12]}  Kf2 {[%clk 0:00:20]} 67. g8=Q {[%clk 0:00:12]}  Ke3 {[%clk 0:00:20]} 1-0


[Site "https://www.chess.com"]

[Event "Titled Tuesday Blitz July 18 Early 2023"]
[White "Golubev, Mikhail"]
[Black "Galperin, Platon"]
[WhiteFideId "14100983"]
[BlackFideId "14165414"]
[WhiteElo "2602"]
[BlackElo "2972"]
[Result "0-1"]
[Round "4"]
[TimeControl "180+2"]
[Date "2023.07.18"]
[WhiteClock "0:00:00"]
[BlackClock "0:00:06"]
[Board "33"]

1. e4 {[%clk 0:03:00]}  d5 {[%clk 0:02:51]} 2. exd5 {[%clk 0:02:58]}  Qxd5 {[%clk 0:02:52]} 3. Nf3 {[%clk 0:02:57]}  Bg4 {[%clk 0:02:42]} 4. Be2 {[%clk 0:02:57]}  Nc6 {[%clk 0:02:41]} 5. d4 {[%clk 0:02:56]}  O-O-O {[%clk 0:02:41]} 6. c4 {[%clk 0:02:56]}  Qh5 {[%clk 0:02:41]} 7. Be3 {[%clk 0:02:36]}  e5 {[%clk 0:02:21]} 8. d5 {[%clk 0:02:33]}  e4 {[%clk 0:02:15]} 9. Nd4 {[%clk 0:02:27]}  Bxe2 {[%clk 0:02:11]} 10. Qxe2 {[%clk 0:02:19]}  Qxe2+ {[%clk 0:02:11]} 11. Kxe2 {[%clk 0:02:17]}  Ne5 {[%clk 0:02:09]} 12. Nd2 {[%clk 0:02:08]}  Nf6 {[%clk 0:01:55]} 13. Nb5 {[%clk 0:01:45]}  Bb4 {[%clk 0:01:27]} 14. Bd4 {[%clk 0:01:26]}  Rhe8 {[%clk 0:00:51]} 15. b3 {[%clk 0:00:38]}  Bxd2 {[%clk 0:00:32]} 16. Kxd2 {[%clk 0:00:34]}  Nxd5 {[%clk 0:00:32]} 17. cxd5 {[%clk 0:00:32]}  Rxd5 {[%clk 0:00:33]} 18. a4 {[%clk 0:00:25]}  a6 {[%clk 0:00:31]} 19. Ke3 {[%clk 0:00:10]}  axb5 {[%clk 0:00:17]} 20. Kxe4 {[%clk 0:00:10]}  c6 {[%clk 0:00:09]} 21. axb5 {[%clk 0:00:10]}  Ng6+ {[%clk 0:00:05]} 22. Kd3 {[%clk 0:00:07]}  c5 {[%clk 0:00:06]} 23. Rhc1 {[%clk 0:00:00]}  Rxd4+ {[%clk 0:00:06]} 0-1


[Site "https://www.chess.com"]

[Event "Titled Tuesday Blitz July 18 Early 2023"]
[White "Skliarov, Viktor"]
[Black "Gorovets, Andrey"]
[WhiteFideId "14106736"]
[BlackFideId "13504037"]
[WhiteElo "2595"]
[BlackElo "2846"]
[Result "0-1"]
[Round "4"]
[TimeControl "180+2"]
[Date "2023.07.18"]
[WhiteClock "0:00:00"]
[BlackClock "0:01:17"]
[Board "39"]

1. e4 {[%clk 0:03:00]}  c5 {[%clk 0:03:00]} 2. Nf3 {[%clk 0:03:00]}  Nc6 {[%clk 0:03:00]} 3. Bb5 {[%clk 0:02:59]}  Nf6 {[%clk 0:03:00]} 4. Bxc6 {[%clk 0:02:59]}  dxc6 {[%clk 0:03:00]} 5. d3 {[%clk 0:03:00]}  Bg4 {[%clk 0:02:59]} 6. h3 {[%clk 0:03:00]}  Bh5 {[%clk 0:02:59]} 7. g4 {[%clk 0:03:00]}  Bg6 {[%clk 0:02:59]} 8. Ne5 {[%clk 0:03:01]}  Nd7 {[%clk 0:02:52]} 9. Nxg6 {[%clk 0:03:01]}  hxg6 {[%clk 0:02:52]} 10. Be3 {[%clk 0:03:00]}  e5 {[%clk 0:02:42]} 11. Nd2 {[%clk 0:02:59]}  Be7 {[%clk 0:02:41]} 12. Qe2 {[%clk 0:02:54]}  Qa5 {[%clk 0:02:37]} 13. a3 {[%clk 0:02:47]}  Nf8 {[%clk 0:02:34]} 14. O-O-O {[%clk 0:02:14]}  Ne6 {[%clk 0:02:30]} 15. Nc4 {[%clk 0:02:12]}  Qc7 {[%clk 0:02:28]} 16. Qd2 {[%clk 0:01:53]}  a5 {[%clk 0:02:26]} 17. Qc3 {[%clk 0:01:46]}  b5 {[%clk 0:02:12]} 18. Nd2 {[%clk 0:01:43]}  c4 {[%clk 0:02:09]} 19. dxc4 {[%clk 0:01:22]}  b4 {[%clk 0:02:08]} 20. axb4 {[%clk 0:01:22]}  axb4 {[%clk 0:02:05]} 21. Qb3 {[%clk 0:01:22]}  Nd4 {[%clk 0:01:37]} 22. Qd3 {[%clk 0:00:34]}  O-O {[%clk 0:01:37]} 23. Bxd4 {[%clk 0:00:29]}  exd4 {[%clk 0:01:31]} 24. Nb1 {[%clk 0:00:17]}  Bg5+ {[%clk 0:01:29]} 25. Rd2 {[%clk 0:00:18]}  Ra1 {[%clk 0:01:27]} 26. h4 {[%clk 0:00:11]}  Bf4 {[%clk 0:01:25]} 27. Re1 {[%clk 0:00:05]}  Rfa8 {[%clk 0:01:23]} 28. Qb3 {[%clk 0:00:00]}  Qa7 {[%clk 0:01:17]} 0-1


[Site "https://www.chess.com"]

[Event "Titled Tuesday Blitz July 18 Early 2023"]
[White "Ter-Sahakyan, Samvel"]
[Black "Al-Tarboush, Ward"]
[WhiteFideId "13302531"]
[BlackFideId "7601450"]
[WhiteElo "2840"]
[BlackElo "2593"]
[Result "1-0"]
[Round "4"]
[TimeControl "180+2"]
[Date "2023.07.18"]
[WhiteClock "0:01:14"]
[BlackClock "0:00:00"]
[Board "40"]

1. d4 {[%clk 0:03:00]}  Nf6 {[%clk 0:02:59]} 2. c4 {[%clk 0:03:00]}  g6 {[%clk 0:02:59]} 3. Nc3 {[%clk 0:03:00]}  d5 {[%clk 0:03:00]} 4. Nf3 {[%clk 0:02:56]}  Bg7 {[%clk 0:02:57]} 5. Bg5 {[%clk 0:02:56]}  Ne4 {[%clk 0:02:48]} 6. Bf4 {[%clk 0:02:56]}  Nxc3 {[%clk 0:02:42]} 7. bxc3 {[%clk 0:02:57]}  c5 {[%clk 0:02:28]} 8. e3 {[%clk 0:02:57]}  O-O {[%clk 0:02:22]} 9. cxd5 {[%clk 0:02:52]}  cxd4 {[%clk 0:02:22]} 10. cxd4 {[%clk 0:02:50]}  Qxd5 {[%clk 0:02:22]} 11. Be2 {[%clk 0:02:49]}  Nc6 {[%clk 0:02:17]} 12. O-O {[%clk 0:02:48]}  Bf5 {[%clk 0:02:14]} 13. Qa4 {[%clk 0:02:09]}  Qa5 {[%clk 0:02:14]} 14. Qxa5 {[%clk 0:02:03]}  Nxa5 {[%clk 0:02:15]} 15. Rfc1 {[%clk 0:02:01]}  Rac8 {[%clk 0:02:10]} 16. Ne5 {[%clk 0:02:01]}  Bxe5 {[%clk 0:01:58]} 17. Bxe5 {[%clk 0:01:59]}  Rxc1+ {[%clk 0:01:58]} 18. Rxc1 {[%clk 0:01:59]}  Rc8 {[%clk 0:01:59]} 19. Rxc8+ {[%clk 0:01:59]}  Bxc8 {[%clk 0:02:00]} 20. d5 {[%clk 0:01:57]}  b6 {[%clk 0:01:53]} 21. Bb8 {[%clk 0:01:56]}  Bb7 {[%clk 0:01:29]} 22. e4 {[%clk 0:01:52]}  e6 {[%clk 0:01:19]} 23. Bxa7 {[%clk 0:01:48]}  exd5 {[%clk 0:01:08]} 24. Bxb6 {[%clk 0:01:49]}  Nc4 {[%clk 0:01:08]} 25. Bd4 {[%clk 0:01:49]}  Nd6 {[%clk 0:00:33]} 26. exd5 {[%clk 0:01:48]}  Bxd5 {[%clk 0:00:32]} 27. a4 {[%clk 0:01:48]}  Nc4 {[%clk 0:00:24]} 28. Bc3 {[%clk 0:01:46]}  Kf8 {[%clk 0:00:14]} 29. a5 {[%clk 0:01:45]}  Ke7 {[%clk 0:00:14]} 30. a6 {[%clk 0:01:46]}  Nb6 {[%clk 0:00:14]} 31. Bd4 {[%clk 0:01:43]}  Na8 {[%clk 0:00:14]} 32. f3 {[%clk 0:01:37]}  Kd6 {[%clk 0:00:13]} 33. Kf2 {[%clk 0:01:35]}  Kc6 {[%clk 0:00:13]} 34. Kg3 {[%clk 0:01:31]}  Bb3 {[%clk 0:00:10]} 35. Kf4 {[%clk 0:01:29]}  h6 {[%clk 0:00:10]} 36. Ke5 {[%clk 0:01:28]}  Nb6 {[%clk 0:00:08]} 37. Bxb6 {[%clk 0:01:25]}  Kxb6 {[%clk 0:00:09]} 38. Kf6 {[%clk 0:01:25]}  Be6 {[%clk 0:00:08]} 39. Bd3 {[%clk 0:01:25]}  Ba2 {[%clk 0:00:08]} 40. h4 {[%clk 0:01:23]}  Ka7 {[%clk 0:00:07]} 41. g4 {[%clk 0:01:20]}  Bb3 {[%clk 0:00:07]} 42. f4 {[%clk 0:01:18]}  Be6 {[%clk 0:00:03]} 43. g5 {[%clk 0:01:13]}  hxg5 {[%clk 0:00:01]} 44. fxg5 {[%clk 0:01:14]}  Bb3 {[%clk 0:00:00]} 45. Bb5 {[%clk 0:01:14]} 1-0


[Site "https://www.chess.com"]

[Event "Titled Tuesday Blitz July 18 Early 2023"]
[White "Ahmad, Khagan"]
[Black "Ozen, Bahadir"]
[WhiteFideId "13431552"]
[BlackFideId "6337058"]
[WhiteElo "2593"]
[BlackElo "2837"]
[Result "1/2-1/2"]
[Round "4"]
[TimeControl "180+2"]
[Date "2023.07.18"]
[WhiteClock "0:00:04"]
[BlackClock "0:00:05"]
[Board "41"]

1. c4 {[%clk 0:03:00]}  g6 {[%clk 0:03:00]} 2. g3 {[%clk 0:02:56]}  Bg7 {[%clk 0:03:00]} 3. Nf3 {[%clk 0:02:54]}  Nf6 {[%clk 0:02:59]} 4. Bg2 {[%clk 0:02:53]}  O-O {[%clk 0:02:59]} 5. O-O {[%clk 0:02:52]}  d6 {[%clk 0:03:00]} 6. d4 {[%clk 0:02:52]}  c6 {[%clk 0:03:00]} 7. Nc3 {[%clk 0:02:50]}  Bf5 {[%clk 0:03:00]} 8. Bg5 {[%clk 0:02:47]}  h6 {[%clk 0:02:49]} 9. Bxf6 {[%clk 0:02:42]}  Bxf6 {[%clk 0:02:49]} 10. h4 {[%clk 0:02:40]}  h5 {[%clk 0:02:45]} 11. Qd2 {[%clk 0:02:24]}  Bg7 {[%clk 0:02:32]} 12. Ng5 {[%clk 0:02:17]}  Qb6 {[%clk 0:02:28]} 13. e3 {[%clk 0:02:14]}  a5 {[%clk 0:02:26]} 14. Bh3 {[%clk 0:01:58]}  Bxh3 {[%clk 0:02:25]} 15. Nxh3 {[%clk 0:01:59]}  Nd7 {[%clk 0:02:21]} 16. Ng5 {[%clk 0:01:47]}  a4 {[%clk 0:02:18]} 17. Rab1 {[%clk 0:01:35]}  Qb4 {[%clk 0:02:01]} 18. Qd3 {[%clk 0:01:25]}  e6 {[%clk 0:01:42]} 19. a3 {[%clk 0:01:20]}  Qb3 {[%clk 0:01:33]} 20. Nge4 {[%clk 0:01:18]}  d5 {[%clk 0:01:33]} 21. Nd2 {[%clk 0:01:18]}  Qb6 {[%clk 0:01:34]} 22. c5 {[%clk 0:01:17]}  Qa6 {[%clk 0:01:33]} 23. Qxa6 {[%clk 0:01:16]}  Rxa6 {[%clk 0:01:34]} 24. b4 {[%clk 0:01:14]}  axb3 {[%clk 0:01:34]} 25. Rxb3 {[%clk 0:01:14]}  b6 {[%clk 0:01:35]} 26. cxb6 {[%clk 0:01:13]}  Nxb6 {[%clk 0:01:31]} 27. Na2 {[%clk 0:01:10]}  Rfa8 {[%clk 0:01:27]} 28. Nb4 {[%clk 0:00:54]}  Rxa3 {[%clk 0:01:27]} 29. Rxa3 {[%clk 0:00:55]}  Rxa3 {[%clk 0:01:27]} 30. Nxc6 {[%clk 0:00:55]}  Ra2 {[%clk 0:01:12]} 31. Nf3 {[%clk 0:00:49]}  Nc4 {[%clk 0:01:12]} 32. Rb1 {[%clk 0:00:47]}  Rb2 {[%clk 0:01:12]} 33. Rxb2 {[%clk 0:00:46]}  Nxb2 {[%clk 0:01:12]} 34. Kg2 {[%clk 0:00:46]}  Nc4 {[%clk 0:01:10]} 35. Ne1 {[%clk 0:00:44]}  Bf8 {[%clk 0:01:07]} 36. Nd3 {[%clk 0:00:44]}  Kg7 {[%clk 0:01:08]} 37. Nde5 {[%clk 0:00:43]}  Nxe5 {[%clk 0:01:07]} 38. Nxe5 {[%clk 0:00:44]}  Bd6 {[%clk 0:01:07]} 39. Nd3 {[%clk 0:00:44]}  Be7 {[%clk 0:01:07]} 40. Kf3 {[%clk 0:00:42]}  Bd6 {[%clk 0:01:06]} 41. Ke2 {[%clk 0:00:42]}  Kf6 {[%clk 0:01:06]} 42. Kd2 {[%clk 0:00:39]}  Kf5 {[%clk 0:01:04]} 43. Ke2 {[%clk 0:00:38]}  Kg4 {[%clk 0:00:56]} 44. Ne1 {[%clk 0:00:31]}  f6 {[%clk 0:00:39]} 45. Kf1 {[%clk 0:00:22]}  g5 {[%clk 0:00:20]} 46. hxg5 {[%clk 0:00:19]}  fxg5 {[%clk 0:00:21]} 47. Kg2 {[%clk 0:00:20]}  Kf5 {[%clk 0:00:20]} 48. Nd3 {[%clk 0:00:17]}  Ke4 {[%clk 0:00:19]} 49. Nc5+ {[%clk 0:00:17]}  Kf5 {[%clk 0:00:19]} 50. f3 {[%clk 0:00:16]}  e5 {[%clk 0:00:19]} 51. Nb3 {[%clk 0:00:15]}  e4 {[%clk 0:00:13]} 52. Nd2 {[%clk 0:00:14]}  exf3+ {[%clk 0:00:13]} 53. Nxf3 {[%clk 0:00:14]}  g4 {[%clk 0:00:07]} 54. Nd2 {[%clk 0:00:11]}  Bb4 {[%clk 0:00:08]} 55. Nb3 {[%clk 0:00:09]}  Ke4 {[%clk 0:00:08]} 56. Kf2 {[%clk 0:00:09]}  Kf5 {[%clk 0:00:04]} 57. Nc5 {[%clk 0:00:08]}  Ba3 {[%clk 0:00:05]} 58. Nd3 {[%clk 0:00:08]}  Bd6 {[%clk 0:00:05]} 59. Ne1 {[%clk 0:00:06]}  Kg5 {[%clk 0:00:05]} 60. Ng2 {[%clk 0:00:07]}  Kf5 {[%clk 0:00:05]} 61. Ne1 {[%clk 0:00:07]}  Kg5 {[%clk 0:00:05]} 62. Nd3 {[%clk 0:00:07]}  Kf5 {[%clk 0:00:05]} 63. Nc5 {[%clk 0:00:07]}  Be7 {[%clk 0:00:03]} 64. Na6 {[%clk 0:00:05]}  h4 {[%clk 0:00:04]} 65. gxh4 {[%clk 0:00:01]}  Bxh4+ {[%clk 0:00:04]} 66. Kg2 {[%clk 0:00:02]}  Ke4 {[%clk 0:00:05]} 67. Nc7 {[%clk 0:00:02]}  Bd8 {[%clk 0:00:02]} 68. Ne6 {[%clk 0:00:02]}  Be7 {[%clk 0:00:02]} 69. Nc7 {[%clk 0:00:02]}  Kxe3 {[%clk 0:00:02]} 70. Nxd5+ {[%clk 0:00:02]}  Kxd4 {[%clk 0:00:03]} 71. Nxe7 {[%clk 0:00:03]}  g3 {[%clk 0:00:04]} 72. Nf5+ {[%clk 0:00:03]}  Kc3 {[%clk 0:00:05]} 73. Nxg3 {[%clk 0:00:04]} 1/2-1/2


[Site "https://www.chess.com"]

[Event "Titled Tuesday Blitz July 18 Early 2023"]
[White "Pham, Khoi"]
[Black "Oro, Faustino"]
[WhiteFideId "1054988"]
[BlackFideId "20000197"]
[WhiteElo "2583"]
[BlackElo "2793"]
[Result "1-0"]
[Round "4"]
[TimeControl "180+2"]
[Date "2023.07.18"]
[WhiteClock "0:02:04"]
[BlackClock "0:00:16"]
[Board "44"]

1. e4 {[%clk 0:03:00]}  e5 {[%clk 0:02:58]} 2. Bc4 {[%clk 0:02:57]}  Nf6 {[%clk 0:02:54]} 3. d3 {[%clk 0:02:56]}  c6 {[%clk 0:02:53]} 4. Nc3 {[%clk 0:02:55]}  d5 {[%clk 0:02:50]} 5. Bb3 {[%clk 0:02:53]}  Bb4 {[%clk 0:02:46]} 6. Bd2 {[%clk 0:02:51]}  O-O {[%clk 0:02:42]} 7. Nf3 {[%clk 0:02:50]}  Re8 {[%clk 0:02:37]} 8. O-O {[%clk 0:02:48]}  Bg4 {[%clk 0:02:34]} 9. h3 {[%clk 0:02:42]}  Bh5 {[%clk 0:02:35]} 10. g4 {[%clk 0:02:42]}  Nxg4 {[%clk 0:02:13]} 11. hxg4 {[%clk 0:02:43]}  Bxg4 {[%clk 0:02:14]} 12. Kg2 {[%clk 0:02:42]}  d4 {[%clk 0:01:46]} 13. Ne2 {[%clk 0:02:39]}  Bd6 {[%clk 0:01:19]} 14. Ng5 {[%clk 0:02:26]}  Rf8 {[%clk 0:01:18]} 15. f3 {[%clk 0:02:24]}  Bh5 {[%clk 0:01:16]} 16. Rh1 {[%clk 0:02:19]}  Bg6 {[%clk 0:01:15]} 17. Qg1 {[%clk 0:02:05]}  Nd7 {[%clk 0:01:04]} 18. Nxh7 {[%clk 0:02:03]}  Bxh7 {[%clk 0:00:37]} 19. Rxh7 {[%clk 0:02:04]}  Kxh7 {[%clk 0:00:33]} 20. Qh2+ {[%clk 0:02:04]}  Kg6 {[%clk 0:00:16]} 21. Qg3+ {[%clk 0:02:04]} 1-0


[Site "https://www.chess.com"]

[Event "Titled Tuesday Blitz July 18 Early 2023"]
[White "Aggelis, Nikolaos"]
[Black "Krzyzanowski, Marcin"]
[WhiteFideId "4213220"]
[BlackFideId "1132199"]
[WhiteElo "2579"]
[BlackElo "2769"]
[Result "0-1"]
[Round "4"]
[TimeControl "180+2"]
[Date "2023.07.18"]
[WhiteClock "0:00:00"]
[BlackClock "0:00:08"]
[Board "46"]

1. c4 {[%clk 0:02:57]}  e5 {[%clk 0:02:59]} 2. Nc3 {[%clk 0:02:55]}  Nf6 {[%clk 0:02:59]} 3. g3 {[%clk 0:02:54]}  Bb4 {[%clk 0:02:55]} 4. Bg2 {[%clk 0:02:54]}  a5 {[%clk 0:02:51]} 5. Nf3 {[%clk 0:02:36]}  d6 {[%clk 0:02:46]} 6. O-O {[%clk 0:02:34]}  O-O {[%clk 0:02:44]} 7. Ne1 {[%clk 0:02:15]}  Nc6 {[%clk 0:02:31]} 8. Nc2 {[%clk 0:02:15]}  Bc5 {[%clk 0:02:24]} 9. e3 {[%clk 0:02:09]}  Bg4 {[%clk 0:02:20]} 10. f3 {[%clk 0:02:02]}  Bd7 {[%clk 0:02:11]} 11. d4 {[%clk 0:02:01]}  Ba7 {[%clk 0:02:06]} 12. Kh1 {[%clk 0:01:58]}  Re8 {[%clk 0:02:04]} 13. d5 {[%clk 0:01:54]}  Nb4 {[%clk 0:01:56]} 14. e4 {[%clk 0:01:51]}  Nxc2 {[%clk 0:01:55]} 15. Qxc2 {[%clk 0:01:51]}  Nh5 {[%clk 0:01:52]} 16. Qe2 {[%clk 0:01:41]}  g6 {[%clk 0:01:34]} 17. Be3 {[%clk 0:01:40]}  Bxe3 {[%clk 0:01:26]} 18. Qxe3 {[%clk 0:01:41]}  f5 {[%clk 0:01:21]} 19. exf5 {[%clk 0:01:20]}  gxf5 {[%clk 0:01:21]} 20. Qh6 {[%clk 0:00:59]}  Ng7 {[%clk 0:01:18]} 21. g4 {[%clk 0:00:51]}  Rf8 {[%clk 0:01:10]} 22. g5 {[%clk 0:00:46]}  Qe8 {[%clk 0:01:03]} 23. f4 {[%clk 0:00:40]}  e4 {[%clk 0:00:58]} 24. Rfe1 {[%clk 0:00:30]}  Qh5 {[%clk 0:00:57]} 25. Qxh5 {[%clk 0:00:28]}  Nxh5 {[%clk 0:00:58]} 26. Rf1 {[%clk 0:00:23]}  a4 {[%clk 0:00:56]} 27. Rae1 {[%clk 0:00:22]}  Kf7 {[%clk 0:00:49]} 28. Nd1 {[%clk 0:00:22]}  b5 {[%clk 0:00:47]} 29. Ne3 {[%clk 0:00:18]}  bxc4 {[%clk 0:00:46]} 30. Rf2 {[%clk 0:00:16]}  Rfb8 {[%clk 0:00:44]} 31. Nxc4 {[%clk 0:00:16]}  Rb4 {[%clk 0:00:38]} 32. Rc1 {[%clk 0:00:13]}  Rab8 {[%clk 0:00:35]} 33. Bf1 {[%clk 0:00:11]}  Bb5 {[%clk 0:00:30]} 34. Ne3 {[%clk 0:00:09]}  Bxf1 {[%clk 0:00:21]} 35. Rxc7+ {[%clk 0:00:07]}  Kg6 {[%clk 0:00:21]} 36. Rxf1 {[%clk 0:00:06]}  Rxb2 {[%clk 0:00:21]} 37. Rc6 {[%clk 0:00:05]}  R2b6 {[%clk 0:00:16]} 38. Nc4 {[%clk 0:00:04]}  Rxc6 {[%clk 0:00:14]} 39. dxc6 {[%clk 0:00:05]}  Rc8 {[%clk 0:00:14]} 40. Rd1 {[%clk 0:00:04]}  Rxc6 {[%clk 0:00:13]} 41. Nxd6 {[%clk 0:00:04]}  Nxf4 {[%clk 0:00:12]} 42. Nb5 {[%clk 0:00:05]}  e3 {[%clk 0:00:08]} 43. Nd4 {[%clk 0:00:04]}  Rd6 {[%clk 0:00:08]} 44. Rf1 {[%clk 0:00:00]}  Rxd4 {[%clk 0:00:08]} 0-1


[Site "https://www.chess.com"]

[Event "Titled Tuesday Blitz July 18 Early 2023"]
[White "Zavgorodniy, Sergiy"]
[Black "Brodowski, Piotr"]
[WhiteFideId "14110148"]
[BlackFideId "1124480"]
[WhiteElo "2572"]
[BlackElo "2750"]
[Result "1-0"]
[Round "4"]
[TimeControl "180+2"]
[Date "2023.07.18"]
[WhiteClock "0:00:22"]
[BlackClock "0:00:49"]
[Board "50"]

1. d4 {[%clk 0:03:00]}  d6 {[%clk 0:02:59]} 2. c4 {[%clk 0:03:00]}  e5 {[%clk 0:02:58]} 3. Nc3 {[%clk 0:03:00]}  exd4 {[%clk 0:02:58]} 4. Qxd4 {[%clk 0:03:01]}  Nc6 {[%clk 0:02:58]} 5. Qd2 {[%clk 0:03:01]}  g6 {[%clk 0:02:58]} 6. b3 {[%clk 0:03:01]}  Bg7 {[%clk 0:02:58]} 7. Bb2 {[%clk 0:03:02]}  Nf6 {[%clk 0:02:58]} 8. g3 {[%clk 0:03:02]}  O-O {[%clk 0:02:57]} 9. Bg2 {[%clk 0:03:03]}  Bd7 {[%clk 0:02:58]} 10. Nh3 {[%clk 0:03:03]}  a6 {[%clk 0:02:56]} 11. Nf4 {[%clk 0:03:02]}  Rb8 {[%clk 0:02:56]} 12. h4 {[%clk 0:02:59]}  h5 {[%clk 0:02:55]} 13. O-O {[%clk 0:02:59]}  Ne5 {[%clk 0:02:54]} 14. a4 {[%clk 0:02:56]}  Bc6 {[%clk 0:02:52]} 15. Nfd5 {[%clk 0:02:51]}  Re8 {[%clk 0:02:47]} 16. Rac1 {[%clk 0:02:46]}  Neg4 {[%clk 0:02:45]} 17. e3 {[%clk 0:02:42]}  Nd7 {[%clk 0:02:44]} 18. Rfd1 {[%clk 0:02:36]}  a5 {[%clk 0:02:42]} 19. Nb5 {[%clk 0:02:30]}  Nc5 {[%clk 0:02:33]} 20. Bxg7 {[%clk 0:02:26]}  Kxg7 {[%clk 0:02:32]} 21. Nbxc7 {[%clk 0:02:18]}  Re5 {[%clk 0:02:24]} 22. Qc3 {[%clk 0:02:06]}  f6 {[%clk 0:02:23]} 23. Rb1 {[%clk 0:01:49]}  Rc8 {[%clk 0:02:19]} 24. Nb5 {[%clk 0:01:41]}  Bxb5 {[%clk 0:02:18]} 25. axb5 {[%clk 0:01:40]}  g5 {[%clk 0:02:05]} 26. hxg5 {[%clk 0:01:36]}  Rxg5 {[%clk 0:02:04]} 27. Rd4 {[%clk 0:01:29]}  Ne6 {[%clk 0:01:48]} 28. Rd2 {[%clk 0:01:24]}  Rg6 {[%clk 0:01:20]} 29. Rbd1 {[%clk 0:01:14]}  h4 {[%clk 0:01:19]} 30. Be4 {[%clk 0:01:03]}  Rh6 {[%clk 0:01:17]} 31. Nf4 {[%clk 0:00:55]}  Nxf4 {[%clk 0:01:15]} 32. gxf4 {[%clk 0:00:50]}  h3 {[%clk 0:01:15]} 33. Bf3 {[%clk 0:00:38]}  h2+ {[%clk 0:01:15]} 34. Kh1 {[%clk 0:00:36]}  Qd7 {[%clk 0:01:15]} 35. Qc2 {[%clk 0:00:24]}  Kh8 {[%clk 0:00:54]} 36. Rxd6 {[%clk 0:00:22]}  Qg7 {[%clk 0:00:54]} 37. Rd8+ {[%clk 0:00:21]}  Rxd8 {[%clk 0:00:49]} 38. Rxd8+ {[%clk 0:00:22]} 1-0


[Site "https://www.chess.com"]